fUST/lending_fUST_20250529
["ID","MTS","AMOUNT","RATE_DAILY","PERIOD"]
[362890598,1748512240363,-500.0,0.0002226,2]
[362890600,1748512240372,-823.0,0.00022281,2]
[362890602,1748512240381,-1068.69,0.00022433,2]
[362890604,1748512240391,-1199.93,0.00022433,2]
[362890606,1748512240400,-545.38,0.00022433,2]
[362890608,1748512240410,-430.0,0.00022433,2]
[362890610,1748512240419,-430.0,0.00022433,2]
[362890612,1748512240428,-430.0,0.00022433,2]
[362890614,1748512240437,-445.54,0.00022434,2]
[362890616,1748512240448,-1021.63,0.00022434,2]
[362890618,1748512240458,-430.0,0.00022434,2]
[362890620,1748512240467,-430.0,0.00022434,2]
[362890622,1748512240476,-430.0,0.00022461,2]
[362890624,1748512240485,-430.0,0.00022461,2]
[362890626,1748512240494,-430.0,0.00022461,2]
[362890637,1748512240602,-664.97,0.00022461,2]
[362890639,1748512240619,-430.0,0.00022465,2]
[362890641,1748512240629,-552.78,0.00022465,2]
[362890643,1748512240638,-7033.85,0.00022465,2]
[362890645,1748512240648,-619.60844834,0.00022486,7]
[362890647,1748512240657,-371.224368,0.00022508,7]
[362890649,1748512240667,-371.224368,0.00022508,7]
[362890651,1748512240676,-151.0,0.00022508,7]
[362890653,1748512240685,-214.687702,0.0002264,7]
[362890655,1748512240694,-214.687702,0.0002264,7]
[362890657,1748512240704,-151.0,0.0002264,7]
[362890659,1748512240713,-252.429455,0.0002264,7]
[362890661,1748512240722,-252.429455,0.0002264,7]
[362890663,1748512240732,-2215.158,0.0002264,2]
[362890665,1748512240741,-708.0,0.0002264,2]
[362890667,1748512240751,-1068.69,0.00022707,2]
[362890669,1748512240760,-1199.93,0.00022707,2]
[362890671,1748512240770,-545.38,0.00022707,2]
[362890673,1748512240781,-212.93663224,0.00022707,2]
[362890675,1748512240793,-430.0,0.00022707,2]
[362890677,1748512240802,-430.0,0.00022707,2]
[362890679,1748512240811,-151.0,0.00022708,7]
[362890681,1748512240820,-1021.63,0.00022708,2]
[362890683,1748512240831,-430.0,0.00022708,2]
[362890685,1748512240840,-151.0,0.00022708,7]
[362890687,1748512240850,-155.573715,0.00022708,7]
[362890689,1748512240859,-482.94,0.00022708,2]
[362890691,1748512240868,-619.60844834,0.00022728,7]
[362890693,1748512240877,-430.0,0.00022735,2]
[362890695,1748512240887,-292.21,0.00022735,2]
[362890696,1748512240896,-430.0,0.00022735,2]
[362890697,1748512240905,-664.97,0.00022735,2]
[362890698,1748512240914,-430.0,0.00022739,2]
[362890699,1748512240923,-552.78,0.00022739,2]
[362890700,1748512240932,-7033.85,0.00022739,2]
[362890701,1748512240941,-242.00030795,0.00022773,2]
[362890702,1748512240951,-772.62299123,0.000229,2]
[362890703,1748512240960,-619.60844834,0.00022969,8]
[362890704,1748512240969,-1068.69,0.00022981,2]
[362890705,1748512240978,-1199.93,0.00022981,2]
[362890706,1748512240987,-545.38,0.00022981,2]
[362890707,1748512240996,-430.0,0.00022981,2]
[362890708,1748512241005,-430.0,0.00022981,2]
[362890709,1748512241016,-1021.63,0.00022982,2]
[362890710,1748512241026,-430.0,0.00022982,2]
[362890713,1748512241035,-15048.05435484,0.00023,7]
[362890714,1748512241046,-3001.3371345,0.00023,7]
[362890716,1748512241056,-151.0,0.00023,7]
[362890719,1748512241074,-519.869324,0.00023,7]
[362890722,1748512241086,-519.869324,0.00023,7]
[362890724,1748512241096,-151.0,0.00023,7]
[362890726,1748512241106,-582.491448,0.00023,2]
[362890728,1748512241116,-151.0,0.00023,7]
[362890730,1748512241126,-151.0,0.00023,7]
[362890732,1748512241136,-181.968327,0.00023,7]
[362890734,1748512241147,-151.0,0.00023,7]
[362890736,1748512241157,-181.968327,0.00023,7]
[362890738,1748512241167,-151.0,0.00023,7]
[362890740,1748512241177,-692.031108,0.00023,7]
[362890742,1748512241187,-692.031108,0.00023,7]
[362890744,1748512241197,-813.45,0.00023,2]
[362890746,1748512241207,-430.0,0.00023009,2]
[362890749,1748512241217,-430.0,0.00023009,2]
[362890751,1748512241227,-416.15729618,0.00023009,2]
[362890757,1748512241274,-421.59719,0.00019419,2]
[362890759,1748512241284,-430.0,0.00019419,2]
[362890761,1748512241294,-248.81270382,0.00023009,2]
[362890763,1748512241304,-151.0,0.0002301,7]
[362890765,1748512241314,-439.596672,0.0002301,7]
[362890767,1748512241324,-439.596672,0.0002301,7]
[362890769,1748512241334,-899.773236,0.0002301,7]
[362890771,1748512241344,-899.773236,0.0002301,7]
[362890773,1748512241354,-430.0,0.00023013,2]
[362890775,1748512241364,-471.34907086,0.00023013,2]
[362890777,1748512241378,-81.43092914,0.00023013,2]
[362890780,1748512241387,-7033.85,0.00023013,2]
[362890782,1748512241398,-619.60844834,0.0002321,8]
[362890784,1748512241407,-1068.69,0.00023255,2]
[362890786,1748512241417,-1199.93,0.00023255,2]
[362890788,1748512241428,-545.38,0.00023255,2]
[362890790,1748512241437,-430.0,0.00023255,2]
[362890792,1748512241446,-430.0,0.00023255,2]
[362890794,1748512241455,-151.0,0.00023255,7]
[362890796,1748512241465,-151.0,0.00023256,7]
[362890798,1748512241475,-1021.63,0.00023256,2]
[362890800,1748512241485,-430.0,0.00023256,2]
[362890802,1748512241494,-2895.62969226,0.00023256,2]
[362890804,1748512241506,-2104.37030774,0.00023256,2]
[362890806,1748512241515,-430.0,0.00023283,2]
[362890808,1748512241525,-430.0,0.00023283,2]
[362890810,1748512241535,-664.97,0.00023283,2]
[362890812,1748512241546,-157.15358,0.00023284,7]
[362890814,1748512241556,-153.96827,0.00023284,7]
[362890816,1748512241566,-151.0,0.00023284,7]
[362890818,1748512241575,-151.0,0.00023284,7]
[362890820,1748512241585,-151.0,0.00023284,7]
[362890822,1748512241594,-273.898536,0.00023284,7]
[362890824,1748512241604,-151.0,0.00023284,7]
[362890826,1748512241613,-151.0,0.00023284,7]
[362890828,1748512241623,-30.63930626,0.00023287,2]
[362890862,1748512241944,-5000.0,0.00019225,2]
[362890863,1748512241954,-350.0,0.00019419,2]
[362890865,1748512241963,-430.0,0.00019419,2]
[362890866,1748512241973,-500.0,0.00019419,2]
[362890868,1748512241983,-500.0,0.00019419,2]
[362890869,1748512241992,-500.0,0.00019419,2]
[362890871,1748512242001,-500.0,0.00019419,2]
[362890873,1748512242011,-500.0,0.00019419,2]
[362890874,1748512242021,-500.0,0.00019419,2]
[362890876,1748512242029,-500.0,0.00019419,2]
[362890877,1748512242039,-272.01495403,0.00019419,2]
[362890879,1748512242048,-500.0,0.00019419,2]
[362890880,1748512242057,-500.0,0.00019419,2]
[362890882,1748512242066,-500.0,0.00019419,2]
[362890883,1748512242076,-500.0,0.00019419,2]
[362890885,1748512242085,-500.0,0.00019419,2]
[362890886,1748512242094,-500.0,0.00019419,2]
[362890888,1748512242103,-500.0,0.00019419,2]
[362890890,1748512242112,-500.0,0.00019419,2]
[362890891,1748512242122,-500.0,0.00019419,2]
[362890893,1748512242131,-500.0,0.00019419,2]
[362890894,1748512242141,-500.0,0.00019419,2]
[362890896,1748512242150,-500.0,0.00019419,2]
[362890898,1748512242159,-500.0,0.00019419,2]
[362890899,1748512242169,-500.0,0.00019419,2]
[362890901,1748512242179,-430.0,0.00019419,2]
[362890903,1748512242189,-500.0,0.00019419,2]
[362890904,1748512242198,-500.0,0.00019419,2]
[362890906,1748512242207,-505.01844036,0.00019419,2]
[362890908,1748512242216,-500.0,0.00019419,2]
[362890909,1748512242226,-500.0,0.00019419,2]
[362890911,1748512242235,-500.0,0.00019419,2]
[362890913,1748512242244,-500.0,0.00019419,2]
[362890914,1748512242254,-399.36069374,0.00023287,2]
[362890916,1748512242265,-552.78,0.00023287,2]
[362890918,1748512242274,-7033.85,0.00023287,2]
[362890919,1748512242283,-500.0,0.00023356,2]
[362890921,1748512242293,-500.0,0.00023449,9]
[362890922,1748512242302,-500.0,0.00023449,9]
[362890924,1748512242311,-619.60844834,0.00023452,9]
[362890926,1748512242347,-306.723216,0.0002352,3]
[362890927,1748512242356,-223.0315306,0.00023529,2]
[362890929,1748512242366,-1068.69,0.00023529,2]
[362890931,1748512242376,-1199.93,0.00023529,2]
[362890932,1748512242385,-545.38,0.00023529,2]
[362890934,1748512242396,-430.0,0.00023529,2]
[362890935,1748512242405,-163.45,0.00023529,2]
[362890937,1748512242414,-371.224368,0.0002353,7]
[362890939,1748512242423,-371.224368,0.0002353,7]
[362890940,1748512242433,-151.0,0.0002353,7]
[362890942,1748512242442,-1021.63,0.0002353,2]
[362890944,1748512242452,-364.59,0.0002353,2]
[362890945,1748512242461,-88117.747199,0.00023531,10]
[362890947,1748512242474,-8588.83708375,0.00023531,10]
[362890950,1748512242495,-572.325,0.00023531,10]
[362890951,1748512242507,-8134.37071725,0.00023531,10]
[362890953,1748512242518,-430.0,0.00023557,2]
[362890955,1748512242527,-430.0,0.00023557,2]
[362890957,1748512242537,-664.97,0.00023557,2]
[362890958,1748512242547,-430.0,0.00023561,2]
[362890960,1748512242557,-552.78,0.00023561,2]
[362890961,1748512242566,-7033.85,0.00023561,2]
[362890963,1748512242575,-214.687702,0.0002357,7]
[362890965,1748512242585,-214.687702,0.0002357,7]
[362890967,1748512242595,-151.0,0.0002357,7]
[362890968,1748512242604,-252.429455,0.0002357,7]
[362890970,1748512242614,-252.429455,0.0002357,7]
[362890972,1748512242624,-619.60844834,0.00023693,9]
[362890973,1748512242633,-158.448493,0.00023747,5]
[362890975,1748512242643,-1189.0,0.0002375,15]
[362890977,1748512242653,-1249.73802741,0.0002376,2]
[362891034,1748512243606,-157.61,0.00017437,2]
[362891036,1748512243619,-427.52435132,0.00019419,2]
[362891047,1748512243733,-72.47564868,0.00019419,2]
[362891049,1748512243743,-500.0,0.00019419,2]
[362891051,1748512243753,-430.0,0.00019419,2]
[362891054,1748512243767,-500.0,0.00019419,2]
[362891056,1748512243776,-340.14130936,0.00019419,2]
[362891058,1748512243791,-500.0,0.00019419,2]
[362891060,1748512243801,-59.64573679,0.00019419,2]
[362891352,1748512246527,-370.35426321,0.00019419,2]
[362891354,1748512246538,-430.0,0.00019419,2]
[362891357,1748512246551,-13201.51477651,0.0002376,2]
[362891360,1748512246561,-1199.93,0.00023803,2]
[362891363,1748512246571,-545.38,0.00023803,2]
[362891365,1748512246581,-430.0,0.00023803,2]
[362891366,1748512246590,-331.26249226,0.00023804,2]
[362891368,1748512246739,-430.0,0.00019178,2]
[362891370,1748512246749,-690.36750774,0.00023804,2]
[362891372,1748512246760,-430.0,0.00023831,2]
[362891374,1748512246770,-430.0,0.00023831,2]
[362891376,1748512246779,-400.00804784,0.00023831,2]
[362893249,1748512524781,166.504531,0.00013699,2]
[362893289,1748513432697,-5000.0,0.00017016,2]
[362893291,1748513432707,-239.49329713,0.00017188,2]
[362893292,1748513432717,-160.0,0.00018069,2]
[362893294,1748513432726,-300.0,0.00018124,2]
[362893296,1748513432736,-13069.6260106,0.00018125,2]
[362893311,1748513432889,-199.57774761,0.00018264,2]
[362893312,1748513432899,-180.17193747,0.000189,2]
[362893313,1748513432909,-204.70481748,0.000189,2]
[362893314,1748513432918,-658.27827186,0.00019009,2]
[362893315,1748513432928,-204.70481728,0.00019161,2]
[362893316,1748513432937,-430.0,0.00019178,2]
[362893317,1748513432947,-430.0,0.00019178,2]
[362893318,1748513432957,-546.27670292,0.00019178,2]
[362893319,1748513432966,-400.81391833,0.00019178,2]
[362893320,1748513432975,-430.0,0.00019178,2]
[362893321,1748513432984,-430.0,0.00019178,2]
[362893322,1748513432995,-430.0,0.00019178,2]
[362893323,1748513433005,-219.46690057,0.00019178,2]
[362893324,1748513433014,-430.0,0.00019178,2]
[362893325,1748513433026,-430.0,0.00019178,2]
[362893326,1748513433035,-430.0,0.00019178,2]
[362893327,1748513433045,-430.0,0.00019178,2]
[362893328,1748513433055,-2051.54,0.00019178,2]
[362893329,1748513433066,-430.0,0.00019178,2]
[362893330,1748513433076,-347.09387098,0.00019178,2]
[362893331,1748513433086,-151.0,0.00019178,2]
[362893332,1748513433096,-188.045625,0.00019178,2]
[362893333,1748513433105,-156.587,0.00019233,2]
[362893334,1748513433115,-178.523289,0.00019288,2]
[362893335,1748513433125,-430.0,0.00019417,2]
[362893336,1748513433135,-500.0,0.00019417,2]
[362893337,1748513433144,-264.07918391,0.00019417,2]
[362893338,1748513433154,-430.0,0.00019417,2]
[362893339,1748513433163,-400.0,0.00019418,2]
[362893340,1748513433173,-458.34631231,0.00019418,2]
[362893341,1748513433186,-217.0183802,0.00019418,2]
[362893342,1748513433197,-430.0,0.00019418,2]
[362893343,1748513433206,-325.28808116,0.00019418,2]
[362893344,1748513433216,-430.0,0.00019418,2]
[362893345,1748513433227,-430.0,0.00019418,2]
[362893346,1748513433237,-401.24960383,0.00019418,2]
[362893347,1748513433247,-569.46870404,0.00019418,2]
[362893348,1748513433259,-400.0,0.00019418,2]
[362893349,1748513433272,-430.0,0.00019418,2]
[362893350,1748513433282,-430.0,0.00019418,2]
[362893351,1748513433291,-430.0,0.00019418,2]
[362893352,1748513433301,-400.0,0.00019418,2]
[362893353,1748513433312,-430.0,0.00019418,2]
[362893354,1748513433322,-430.0,0.00019418,2]
[362893355,1748513433332,-430.0,0.00019418,2]
[362893356,1748513433342,-430.0,0.00019418,2]
[362893357,1748513433352,-430.0,0.00019418,2]
[362893358,1748513433362,-400.0,0.00019418,2]
[362893359,1748513433371,-430.0,0.00019418,2]
[362893360,1748513433381,-430.0,0.00019418,2]
[362893361,1748513433391,-430.0,0.00019418,2]
[362893362,1748513433401,-430.0,0.00019418,2]
[362893363,1748513433411,-350.0,0.00019418,2]
[362893364,1748513433422,-430.0,0.00019418,2]
[362893365,1748513433431,-300.0,0.00019418,2]
[362893366,1748513433440,-450.0,0.00019418,2]
[362893367,1748513433450,-450.0,0.00019418,2]
[362893368,1748513433460,-430.0,0.00019418,2]
[362893369,1748513433470,-430.0,0.00019418,2]
[362893370,1748513433480,-430.0,0.00019418,2]
[362893371,1748513433489,-430.0,0.00019418,2]
[362893372,1748513433501,-494.83404004,0.00019418,2]
[362893373,1748513433510,-430.0,0.00019418,2]
[362893374,1748513433522,-430.0,0.00019418,2]
[362893375,1748513433532,-430.0,0.00019418,2]
[362893376,1748513433542,-430.0,0.00019418,2]
[362893377,1748513433552,-435.64955504,0.00019418,2]
[362893378,1748513433562,-430.0,0.00019418,2]
[362893379,1748513433572,-430.0,0.00019418,2]
[362893380,1748513433581,-506.45264645,0.00019418,2]
[362893381,1748513433591,-421.25219529,0.00019418,2]
[362893382,1748513433600,-430.0,0.00019418,2]
[362893383,1748513433610,-415.7923205,0.00019418,2]
[362893384,1748513433620,-340.0,0.00019418,2]
[362893385,1748513433630,-368.99271537,0.00019418,2]
[362893386,1748513433639,-430.0,0.00019418,2]
[362893387,1748513433648,-430.0,0.00019418,2]
[362893388,1748513433658,-430.0,0.00019418,2]
[362893389,1748513433668,-430.0,0.00019418,2]
[362893390,1748513433677,-430.0,0.00019418,2]
[362893391,1748513433687,-430.0,0.00019418,2]
[362893392,1748513433696,-430.0,0.00019418,2]
[362893393,1748513433706,-430.0,0.00019418,2]
[362893394,1748513433716,-430.0,0.00019418,2]
[362893395,1748513433725,-435.4862229,0.00019418,2]
[362893396,1748513433735,-430.0,0.00019418,2]
[362893397,1748513433744,-434.91149244,0.00019418,2]
[362893398,1748513433754,-430.0,0.00019418,2]
[362893399,1748513433764,-430.0,0.00019418,2]
[362893400,1748513433777,-430.0,0.00019418,2]
[362893401,1748513433787,-470.0,0.00019418,2]
[362893402,1748513433797,-430.0,0.00019418,2]
[362893403,1748513433807,-400.0,0.00019418,2]
[362893404,1748513433817,-320.0,0.00019418,2]
[362893405,1748513433826,-310.20887027,0.00019418,2]
[362893406,1748513433836,-430.0,0.00019418,2]
[362893407,1748513433845,-430.0,0.00019418,2]
[362893408,1748513433855,-430.0,0.00019418,2]
[362893409,1748513433865,-430.0,0.00019418,2]
[362893410,1748513433874,-430.0,0.00019418,2]
[362893411,1748513433885,-430.0,0.00019418,2]
[362893412,1748513433894,-430.0,0.00019418,2]
[362893413,1748513433904,-430.0,0.00019418,2]
[362893414,1748513433914,-430.0,0.00019418,2]
[362893415,1748513433923,-430.0,0.00019418,2]
[362893416,1748513433933,-368.49301855,0.00019418,2]
[362893417,1748513433943,-430.0,0.00019418,2]
[362893418,1748513433953,-430.0,0.00019418,2]
[362893419,1748513433963,-213.21149257,0.00019418,2]
[362893420,1748513433972,-400.0,0.00019418,2]
[362893421,1748513433982,-430.0,0.00019418,2]
[362893422,1748513433992,-430.0,0.00019418,2]
[362893423,1748513434002,-430.0,0.00019419,2]
[362893424,1748513434011,-430.0,0.00019419,2]
[362893425,1748513434022,-335.77611539,0.00019419,2]
[362893426,1748513434032,-430.0,0.00019419,2]
[362893427,1748513434042,-430.0,0.00019419,2]
[362893428,1748513434052,-470.0,0.00019419,2]
[362893429,1748513434061,-430.0,0.00019419,2]
[362893430,1748513434070,-430.0,0.00019419,2]
[362893431,1748513434079,-430.0,0.00019419,2]
[362893432,1748513434089,-400.85864954,0.0001942,2]
[362893433,1748513434099,-430.0,0.0001942,2]
[362893434,1748513434109,-204.70481728,0.00019422,2]
[362893435,1748513434119,-430.0,0.00019452,2]
[362893436,1748513434128,-430.0,0.00019452,2]
[362893437,1748513434138,-430.0,0.00019452,2]
[362893438,1748513434147,-2051.54,0.00019452,2]
[362893439,1748513434157,-430.0,0.00019452,2]
[362893440,1748513434168,-160.0,0.00019498,2]
[362893441,1748513434179,-151.0,0.000195,2]
[362893442,1748513434193,-151.0,0.000195,2]
[362893443,1748513434202,-204.70481728,0.00019683,2]
[362893444,1748513434212,-430.0,0.00019691,2]
[362893445,1748513434221,-430.0,0.00019691,2]
[362893446,1748513434234,-430.0,0.00019692,2]
[362893447,1748513434243,-201.05149936,0.00019692,2]
[362893448,1748513434253,-154.4034213,0.00019692,2]
[362893449,1748513434262,-430.0,0.00019692,2]
[362893450,1748513434274,-430.0,0.00019692,2]
[362893451,1748513434284,-430.0,0.00019692,2]
[362893452,1748513434293,-430.0,0.00019726,2]
[362893453,1748513434303,-430.0,0.00019726,2]
[362893454,1748513434313,-430.0,0.00019726,2]
[362893455,1748513434323,-2051.54,0.00019726,2]
[362893456,1748513434332,-430.0,0.00019726,2]
[362893457,1748513434342,-420.0,0.00019773,2]
[362893458,1748513434351,-204.70481728,0.00019943,2]
[362893459,1748513434361,-430.0,0.00019965,2]
[362893460,1748513434371,-430.0,0.00019965,2]
[362893461,1748513434380,-430.0,0.00019966,2]
[362893462,1748513434390,-430.0,0.00019966,2]
[362893463,1748513434400,-430.0,0.00019966,2]
[362893464,1748513434409,-430.0,0.00019966,2]
[362893465,1748513434419,-151.0,0.00019967,2]
[362893466,1748513434430,-151.0,0.00019967,2]
[362893467,1748513434440,-385.4591698,0.0002,2]
[362893468,1748513434449,-260.28,0.0002,2]
[362893469,1748513434459,-430.0,0.0002,2]
[362893470,1748513434468,-2051.54,0.0002,2]
[362893471,1748513434478,-430.0,0.0002,2]
[362893472,1748513434488,-500.0,0.00020047,2]
[362893473,1748513434498,-552.07802267,0.00020078,2]
[362893474,1748513434508,-500.0,0.00020115,2]
[362893475,1748513434519,-357.47659355,0.00020131,2]
[362893476,1748513434529,-12660.97845086,0.00020188,2]
[362893477,1748513434538,-831.42093688,0.00020188,2]
[362893478,1748513434548,-212.70147903,0.00020188,2]
[362893479,1748513434558,-204.70481728,0.00020204,2]
[362893480,1748513434567,-430.0,0.00020239,2]
[362893481,1748513434577,-430.0,0.00020239,2]
[362893482,1748513434587,-430.0,0.0002024,2]
[362893483,1748513434597,-430.0,0.0002024,2]
[362893484,1748513434606,-430.0,0.0002024,2]
[362893485,1748513434616,-430.0,0.0002024,2]
[362893486,1748513434626,-540.41046782,0.00020272,2]
[362893487,1748513434635,-500.0,0.00020272,2]
[362893488,1748513434645,-500.0,0.00020272,2]
[362893489,1748513434655,-500.0,0.00020272,2]
[362893490,1748513434664,-500.0,0.00020272,2]
[362893491,1748513434674,-403.51290825,0.00020272,2]
[362893492,1748513434683,-500.0,0.00020272,2]
[362893493,1748513434693,-500.0,0.00020272,2]
[362893494,1748513434703,-500.0,0.00020272,2]
[362893495,1748513434712,-500.0,0.00020272,2]
[362893496,1748513434722,-500.0,0.00020272,2]
[362893497,1748513434732,-188.09891655,0.00020272,2]
[362893498,1748513434742,-500.0,0.00020272,2]
[362893499,1748513434752,-500.0,0.00020272,2]
[362893500,1748513434765,-500.0,0.00020272,2]
[362893501,1748513434776,-500.0,0.00020272,2]
[362893502,1748513434786,-151.0,0.00020273,2]
[362893503,1748513434795,-430.0,0.00020273,2]
[362893504,1748513434804,-2051.54,0.00020273,2]
[362893505,1748513434813,-430.0,0.00020273,2]
[362893506,1748513434823,-204.70481728,0.00020465,3]
[362893507,1748513434832,-430.0,0.00020513,2]
[362893508,1748513434842,-430.0,0.00020513,2]
[362893509,1748513434852,-430.0,0.00020514,2]
[362893510,1748513434862,-430.0,0.00020514,2]
[362893511,1748513434872,-430.0,0.00020514,2]
[362893512,1748513434882,-151.0,0.00020515,2]
[362893513,1748513434892,-430.0,0.00020547,2]
[362893514,1748513434903,-2051.54,0.00020547,2]
[362893515,1748513434912,-430.0,0.00020547,2]
[362893516,1748513434923,-241.867,0.00020583,2]
[362893517,1748513434932,-1000.0,0.00020595,2]
[362893518,1748513434942,-1000.0,0.00020663,2]
[362893519,1748513434952,-204.70481728,0.00020726,3]
[362893520,1748513434962,-430.0,0.00020787,2]
[362893521,1748513434972,-430.0,0.00020787,2]
[362893522,1748513434981,-517.3,0.00020788,2]
[362893523,1748513434994,-430.0,0.00020788,2]
[362893524,1748513435005,-430.0,0.00020788,2]
[362893525,1748513435014,-430.0,0.00020821,2]
[362893526,1748513435024,-2051.54,0.00020821,2]
[362893527,1748513435034,-430.0,0.00020821,2]
[362893528,1748513435043,-204.70481728,0.00020987,4]
[362893529,1748513435053,-430.0,0.00021061,2]
[362893530,1748513435063,-430.0,0.00021061,2]
[362893531,1748513435072,-430.0,0.00021062,2]
[362893532,1748513435083,-430.0,0.00021062,2]
[362893533,1748513435093,-151.0,0.00021063,2]
[362893534,1748513435103,-430.0,0.00021095,2]
[362893535,1748513435113,-2051.54,0.00021095,2]
[362893536,1748513435123,-430.0,0.00021095,2]
[362893537,1748513435133,-178.356318,0.00021124,2]
[362893538,1748513435143,-1512.30549638,0.00021143,2]
[362893539,1748513435152,-500.0,0.00021164,2]
[362893540,1748513435163,-1500.0,0.00021211,2]
[362893541,1748513435173,-204.70481728,0.00021248,4]
[362893542,1748513435187,-430.0,0.00021335,2]
[362893543,1748513435197,-430.0,0.00021335,2]
[362893544,1748513435207,-430.0,0.00021336,2]
[362893545,1748513435216,-430.0,0.00021336,2]
[362893546,1748513435226,-429.49044787,0.00021369,2]
[362893547,1748513435235,-2051.54,0.00021369,2]
[362893548,1748513435245,-430.0,0.00021369,2]
[362893549,1748513435255,-204.70481728,0.00021509,5]
[362893550,1748513435265,-381.0,0.00021572,2]
[362893551,1748513435276,-430.0,0.00021609,2]
[362893552,1748513435285,-377.75824151,0.00021609,2]
[362893553,1748513435294,-430.0,0.0002161,2]
[362893554,1748513435304,-430.0,0.0002161,2]
[362893555,1748513435314,-151.0,0.0002164,2]
[362893556,1748513435323,-2051.54,0.00021643,2]
[362893557,1748513435333,-430.0,0.00021643,2]
[362893558,1748513435342,-204.70481728,0.0002177,5]
[362893559,1748513435352,-430.0,0.00021883,2]
[362893560,1748513435362,-430.0,0.00021884,2]
[362893561,1748513435371,-430.0,0.00021884,2]
[362893562,1748513435381,-2051.54,0.00021917,2]
[362893563,1748513435391,-430.0,0.00021917,2]
[362893564,1748513435401,-597.53313971,0.00021918,2]
[362893565,1748513435411,-204.70481728,0.0002203,6]
[362893566,1748513435422,-430.0,0.00022157,2]
[362893567,1748513435431,-430.0,0.00022158,2]
[362893568,1748513435441,-430.0,0.00022158,2]
[362893569,1748513435450,-2051.54,0.00022191,2]
[362893570,1748513435460,-430.0,0.00022191,2]
[362893571,1748513435469,-204.70481728,0.00022291,7]
[362893572,1748513435479,-207.4,0.00022424,2]
[362893573,1748513435488,-430.0,0.00022431,2]
[362893574,1748513435498,-189.89576023,0.00022432,2]
[362893575,1748513435507,-430.0,0.00022432,2]
[362893576,1748513435517,-151.0,0.00022433,7]
[362893577,1748513435528,-2051.54,0.00022465,2]
[362893578,1748513435538,-430.0,0.00022465,2]
[362893579,1748513435548,-204.70481728,0.00022552,7]
[362893580,1748513435557,-430.0,0.00022705,2]
[362893581,1748513435566,-430.0,0.00022706,2]
[362893582,1748513435576,-2051.54,0.00022739,2]
[362893583,1748513435586,-430.0,0.00022739,2]
[362893584,1748513435594,-204.70481728,0.00022813,8]
[362893585,1748513435603,-430.0,0.00022979,2]
[362893586,1748513435612,-430.0,0.0002298,2]
[362893587,1748513435621,-151.0,0.00023,7]
[362893588,1748513435630,-12660.97845086,0.00023,7]
[362893589,1748513435639,-2051.54,0.00023013,2]
[362893590,1748513435648,-430.0,0.00023013,2]
[362893591,1748513435657,-204.70481728,0.00023074,8]
[362893592,1748513435665,-732.11,0.000232,2]
[362893593,1748513435673,-405.0,0.00023232,2]
[362893594,1748513435681,-430.0,0.00023253,2]
[362893595,1748513435689,-430.0,0.00023254,2]
[362893596,1748513435698,-2051.54,0.00023287,2]
[362893597,1748513435707,-430.0,0.00023287,2]